Cogmind - Beta 9.6 @@@ ROGUE MODE // 2020.09.14 @ 12:02:31 // Winter2019/RPGLIKE Player: Hermelin Result: Destroyed by G-34 Mercenary with Small Laser Performance ------------- Evolutions (0) 0 Regions Visited (2) 400 Robots Destroyed (39) 195 Value Destroyed (725) 725 Prototype IDs (0) 0 Alien Tech Used (0) 0 Bonus (2) 2 TOTAL SCORE: 1322 Bonus ------- High Alert Combat Kills 2 Cogmind --------- Core Integrity 0/600 Matter 135/300 Energy 250/250 System Corruption 1% Temperature Cool (187) Movement Treading (160) Location -10/Mines Parts ------- > --- POWER (1) -------- Ion Engine > --- PROPULSION (2) --- Light Treads Light Treads > --- UTILITY (4) ------ Targeting Computer Armor Integrity Analyzer Utility Shielding > --- WEAPON (3) ------- Assault Rifle Assault Rifle Slug Cannon > --- INVENTORY (2) ---- Datajack Mining Claw Peak State ------------ > --- POWER ------------ Ion Engine > --- PROPULSION ------- Light Treads Light Treads > --- UTILITY ---------- Improved Terrain Scanner Armor Integrity Analyzer Light Armor Plating Hacking Suite > --- WEAPON ----------- Assault Rifle Assault Rifle Mining Claw > --- INVENTORY -------- Mining Claw [Rating: 14] Favorites ----------- Power Ion Engine Engine Ion Engine Propulsion Light Treads Treads Light Treads Wheel Wheel Utility Improved Terrain Scanner Device Improved Terrain Scanner Processor Armor Integrity Analyzer Hackware Hacking Suite Protection Light Armor Plating Weapon Assault Rifle Ballistic Gun Assault Rifle Ballistic Cannon Slug Cannon Slashing Weapon Mining Claw Build | -11 -10 -10 ------- Run | Scr Mat Min Slots Evolved 6 | 3 3 . Power . | . . . Propulsion 1 | 1 . . Utility 3 | 1 2 . Weapon 2 | 1 1 . Parts Attached 20 | 7 12 1 Power 1 | 1 . . Engine 1 | 1 . . Core . | . . . Reactor . | . . . Propulsion 5 | 2 3 . Treads 4 | 1 3 . Leg . | . . . Wheel 1 | 1 . . Hover . | . . . Flight . | . . . Utility 9 | 2 7 . Device 1 | 1 . . Storage . | . . . Processor 5 | 1 4 . Hackware 1 | . 1 . Protection 2 | . 2 . Artifact . | . . . Weapon 5 | 2 2 1 Energy Gun . | . . . Energy Cannon . | . . . Ballistic Gun 3 | 2 1 . Ballistic Cannon 1 | . . 1 Launcher . | . . . Special Weapon . | . . . Impact Weapon . | . . . Slashing Weapon 1 | . 1 . Piercing Weapon . | . . . Special Melee Weapon . | . . . Unidentified Prototypes . | . . . Parts Lost 1 | . . 1 Power . | . . . Propulsion . | . . . Utility 1 | . . 1 Weapon . | . . . Highest Loss Streak 1 | . . 1 Average Slot Usage (%) 98 | . 98 100 Engine 11 | . 11 10 Treads 17 | . 17 20 Wheel 4 | . 5 . Device 9 | . 11 . Processor 12 | . 10 20 Hackware 4 | . 6 . Protection 9 | . 7 20 Ballistic Gun 22 | . 23 20 Ballistic Cannon 1 | . . 6 Slashing Weapon 3 | . 3 3 Naked Turns . | . . . Heaviest Build 20 | 10 16 20 Greatest Support 45 | 25 45 45 Greatest Overweight (x) . | . . . Average Overweight (x) . | . . . Largest Inventory Capacity 2 | 2 2 2 Average Capacity 2 | 2 2 2 Most Carried 2 | 2 2 2 Average Carried 1 | 1 1 2 Final Capacity 2 | 2 2 2 Final Carried 2 | 2 2 2 Class Distribution -------------------- 56% | Mutant 42% | Hacker-Mutant Dominant Class ---------------- Hacker-Mutant | -10/Materials Mutant | -10/Mines Resources | -11 -10 -10 ----------- Run | Scr Mat Min Matter Collected 1029 | 299 626 104 Remotely . | . . . Salvage Created 966 | 17 833 116 Parts 67 | 4 53 10 Haulers Intercepted 1 | . 1 . Recyclers Shooed . | . . . Parts Field Recycled . | . . . Retrieved Matter . | . . . Parts Self-Destructed . | . . . Prevented . | . . . Kills | -11 -10 -10 ------- Run | Scr Mat Min Combat Hostiles Destroyed 31 | . 21 10 Guns 26 | . 21 5 Cannons 5 | . . 5 Classes Destroyed 8 | 1 6 1 Worker 2 | . 2 . Builder 1 | . . 1 Tunneler 1 | 1 . . Hauler 1 | . 1 . Recycler 1 | . 1 . Operator 2 | . 2 . Swarmer 19 | . 11 8 Grunt 12 | . 10 2 Best Kill Streak 5 | 1 5 3 Combat Bots Only 5 | . 5 3 Max Kills in Single Turn 1 | 1 1 1 Gunslinging . | . . . Exploded . | . . . Melee . | . . . Uniques/NPCs Destroyed . | . . . Combat | -11 -10 -10 -------- Run | Scr Mat Min Damage Taken 1514 | . 786 728 Core 1137 | . 611 526 Absorbed by Shields . | . . . Redirected to Core 940 | . 519 421 Core Remaining (%) 100 | 100 . . Volleys Fired 136 | 5 93 38 Largest 3 | 2 2 3 Hottest 88 | 40 40 88 Shots Fired 262 | 10 185 67 Gun 241 | 10 185 46 Cannon 21 | . . 21 Launcher . | . . . Special . | . . . Kinetic 262 | 10 185 67 Thermal . | . . . Explosive . | . . . Electromagnetic . | . . . Robot Hit Streak 10 | 6 10 8 Robot Miss Streak 8 | 1 8 3 Penetration Max . | . . . Secondary Targets 4 | . 3 1 Max Gunslinging Chain 1 | . 1 1 Shots Hit Robots 161 | 7 111 43 Core Hits 52 | 1 36 15 Critical Hits 3 | . 1 2 Critical Kills 1 | . . 1 Critical Parts Destroyed 2 | . 1 1 Melee Attacks . | . . . Impact . | . . . Slashing . | . . . Piercing . | . . . Sneak Attacks . | . . . Combat Hostiles . | . . . Follow-up Attacks . | . . . Damage Inflicted 2093 | 82 1275 736 Guns 1733 | 82 1275 376 Cannons 360 | . . 360 Explosions . | . . . Melee . | . . . Ramming . | . . . Kinetic 2093 | 82 1275 736 Thermal . | . . . Explosive . | . . . Electromagnetic . | . . . Impact . | . . . Slashing . | . . . Piercing . | . . . Highest Corruption 1 | . 1 1 Average Corruption 1 | . 1 1 Corruption Purged . | . . . Effects 12 | . 11 1 Message Errors 3 | . 3 . Energy Discharges 3 | . 3 . Data Loss (minor) 4 | . 4 . Targeting Errors 1 | . . 1 Weapon Failures 1 | . 1 . Overload Shots . | . . . Overflow Damage 23 | . . 23 Projectiles 23 | . . 23 Explosions . | . . . Melee . | . . . Knockbacks 2 | . . 2 Impact . | . . . Kinetic 2 | . . 2 Secondary . | . . . Self-Inflicted Damage 114 | . 114 . Shots 1 | . 1 . Rammed . | . . . Targets Rammed . | . . . Kicked . | . . . Crushed . | . . . Highest Temperature 181 | . 6 181 Average Temperature 40 | . 6 41 Received Heat Transfer 342 | . 156 186 Siege Activations . | . . . Robots Corrupted . | . . . Combat Hostiles . | . . . Parts Fried . | . . . Impact Corruptions . | . . . Robots Melted . | . . . Combat Hostiles . | . . . Parts Melted . | . . . Heat Transferred . | . . . Parts Sabotaged . | . . . Parts Stolen . | . . . Parts Stripped . | . . . Power Chain Reactions . | . . . Missiles Intercepted . | . . . Alert | -11 -10 -10 ------- Run | Scr Mat Min Peak Influence 422 | 5 422 372 Average Influence 269 | . 285 254 Maximum Alert Level 2 | . 2 1 Low Security (%) 22 | 100 19 25 Level 1 65 | . 66 74 Level 2 11 | . 14 . Level 3 . | . . . Level 4 . | . . . Level 5 . | . . . High Security . | . . . Max Security . | . . . Squads Dispatched 5 | . 5 . Investigation 3 | . 3 . Extermination . | . . . Reinforcement 2 | . 2 . Assault . | . . . Garrison . | . . . Intercept . | . . . Construction Impeded . | . . . Haulers Reinforced . | . . . Stealth | -11 -10 -10 --------- Run | Scr Mat Min Distress Signals 2 | . 2 . Communications Jammed . | . . . Distress Signals . | . . . Times Spotted 53 | . 40 13 Peak Tracking Total 6 | . 6 3 Tactical Retreats 2 | . 1 1 Traps | -11 -10 -10 ------- Run | Scr Mat Min Traps Triggered 1 | . 1 . Indirectly . | . . . Trap Hack Attempts . | . . . Triggered . | . . . Disarmed . | . . . Reprogrammed . | . . . Reused . | . . . Traps Extracted . | . . . Installed . | . . . Triggered . | . . . Machines | -11 -10 -10 ---------- Run | Scr Mat Min Machines Disabled 6 | . 6 . Max in Single Turn 1 | . 1 . Machines Sabotaged . | . . . Garrisons Compromised . | . . . Overloaded Fab Kills . | . . . Fab Network Shutdowns . | . . . Hacking | -11 -10 -10 --------- Run | Scr Mat Min Machines Accessed 8 | . 8 . Terminals 5 | . 5 . Fabricators . | . . . Repair Stations 1 | . 1 . Recycling Units 2 | . 2 . Scanalyzers . | . . . Garrison Access . | . . . Total Hacks 33 | . 33 . Successful 22 | . 22 . Failed 10 | . 10 . Catastrophic . | . . . Database Lockouts 1 | . 1 . Manual 14 | . 14 . Terminals 22 | . 22 . Fabricators . | . . . Repair Stations 6 | . 6 . Recycling Units 5 | . 5 . Scanalyzers . | . . . Garrison Access . | . . . Terminal Hacks 8 | . 8 . Robot Analysis 1 | . 1 . Level Access Points 1 | . 1 . Branch Access Points 1 | . 1 . Terminal Index 1 | . 1 . Locate Traps 2 | . 2 . Hauler Manifests 1 | . 1 . Zone Layout 1 | . 1 . Fabricator Hacks . | . . . Repair Station Hacks 6 | . 6 . Scan Component 3 | . 3 . Repair 3 | . 3 . Recycling Unit Hacks 2 | . 2 . Report Inventory 1 | . 1 . Retrieve Matter 1 | . 1 . Scanalyzer . | . . . Garrison Access Hacks . | . . . Unauthorized Hacks 6 | . 6 . Terminals 4 | . 4 . Track 2 | . 2 . Botnet 1 | . 1 . Operators 1 | . 1 . Fabricators . | . . . Repair Stations . | . . . Recycling Units 2 | . 2 . Tunnel 2 | . 2 . Scanalyzers . | . . . Garrison Access . | . . . Data Cores Recovered . | . . . Used . | . . . Hacking Detections 6 | . 6 . Full Trace Events 1 | . 1 . Feedback Events . | . . . Feedback Blocked . | . . . Robot Schematics Acquired . | . . . Robots Built . | . . . Matter . | . . . Time . | . . . Total Robot Build Rating . | . . . Part Schematics Acquired . | . . . Parts Built . | . . . Matter . | . . . Time . | . . . Total Part Build Rating . | . . . Parts Repaired 3 | . 3 . Time 78 | . 78 . Parts Recycled . | . . . Recycled Matter . | . . . Retrieved Matter 50 | . 50 . Retrieved Components . | . . . Parts Scanalyzed . | . . . Part Schematics Acquired . | . . . Parts Damaged . | . . . Bothacking | -11 -10 -10 ------------ Run | Scr Mat Min Used RIF Installer . | . . . Robots Hacked . | . . . Non-combat . | . . . Combat . | . . . Robot Hacks Applied . | . . . Relay Couplers Released . | . . . Robots Rewired . | . . . Allies Hacked . | . . . Hacks Repelled . | . . . Allies | -11 -10 -10 -------- Run | Scr Mat Min Total Allies . | . . . Largest Group . | . . . Highest-Rated Group . | . . . Highest-Rated Ally . | . . . Total Orders . | . . . Ally Attacks . | . . . Total Damage . | . . . Kills . | . . . Allies Corrupted . | . . . Allies Melted . | . . . Intel | -11 -10 -10 ------- Run | Scr Mat Min Robot Analysis Total 1 | . 1 . Derelict Logs Recovered . | . . . Drone Launches . | . . . Drone Recoveries . | . . . Exploration | -11 -10 -10 ------------- Run | Scr Mat Min Turns Passed 1953 | 66 1537 350 Spaces Moved 1049 | 45 859 145 Core 4 | 4 . . Treads 609 | 5 459 145 Legs . | . . . Wheels 436 | 36 400 . Hover . | . . . Flight . | . . . Fastest Speed 50 | 50 80 160 Average Speed 126 | 86 122 160 Slowest Speed 160 | 160 160 160 Overloaded Moves . | . . . Propulsion Burnouts . | . . . Robots Hopped . | . . . Cave-ins Triggered . | . . . Exploration Rate (%) 41 | 3 94 28 Regions Visited 2 Branch Regions 1 Pre-discovered Areas 2 | . 2 . Known Exits Taken 1 | . 1 . Unknown Exits Taken 1 | 1 . . Scrap Searched . | . . . Spaces Dug . | . . . Terrain Destroyed 64 | . 53 11 Melee . | . . . Projectile 11 | . . 11 AOE 53 | . 53 . Actions | -11 -10 -10 --------- Run | Scr Mat Min Total 1413 | 58 1155 200 Wait 168 | . 163 5 Move 1047 | 44 858 145 Hop . | . . . Pick Up 6 | 2 4 . Fast Attach 19 | 7 11 1 Attach 1 | . 1 . Detach . | . . . Swap . | . . . Drop 10 | . 9 1 Fire 136 | 5 93 38 Melee . | . . . Ram . | . . . Kick . | . . . Crush . | . . . Escape Stasis . | . . . Rewire . | . . . Trap . | . . . Miscellaneous 26 | . 16 10 Route ------- -11/Scrapyard -10/Materials (discovered 4 exits: *Mat x3 / *Min) -10/Mines History --------- Turn | Location | Event 1 | -11/Scrapyard | Upgraded with Propulsion slot (x1) 1 | -11/Scrapyard | Upgraded with Utility slot (x1) 1 | -11/Scrapyard | Upgraded with Weapon slot (x1) 4 | -11/Scrapyard | Discovered new exit (range 16) 67 | -11/Scrapyard | Entered Materials 314 | -10/Materials | Identified exit to Mines 314 | -10/Materials | Central database locked down 316 | -10/Materials | Build established: Mutant 375 | -10/Materials | Discovered new exit (range 13) 380 | -10/Materials | Reached level 2 388 | -10/Materials | Core integrity fell below 50% 393 | -10/Materials | Upgraded with Utility slot (x1) 435 | -10/Materials | Identified exit to Materials 544 | -10/Materials | Discovered exit to Materials (range 14) 734 | -10/Materials | Build established: Hacker-Mutant 843 | -10/Materials | Repaired Lgt. Treads 870 | -10/Materials | Repaired Lgt. Treads 898 | -10/Materials | Repaired Assault Rifle 912 | -10/Materials | Discovered exit to Materials (range 8) 1009 | -10/Materials | Reached level 3 1017 | -10/Materials | Upgraded with Utility slot (x1) 1017 | -10/Materials | Upgraded with Weapon slot (x1) 1564 | -10/Materials | Build established: Mutant 1604 | -10/Materials | Entered Mines 1718 | -10/Mines | A weapon hastily lodged in a ceiling crevice suddenly fell to the ground 1845 | -10/Mines | Reached level 4 1941 | -10/Mines | Core integrity fell below 20% 1954 | -10/Mines | Destroyed by G-34 Mercenary with Small Laser Last Messages --------------- 01845_ Reached level 4. 01845_ S-10 Pest destroyed. 01851_ Used Protomatter to restore core integrity (+18, depleted) 01881_ S-10 Pest suffers critical hit. 01881_ S-10 Pest destroyed. 01886_ Used Protomatter to restore core integrity (+12, depleted) 01889_ Protomatter-5 decays. 01889_ R-06 Scavenger collects Flight Unit. 01894_ R-06 Scavenger collects Lgt. Ion Engine. 01895_ Slug penetrates R-06 Scavenger. 01895_ Destroyed Com. Wheel. 01899_ Destroyed Flight Unit. 01903_ S-10 Pest destroyed. 01906_ U-05 Engineer builds a Wall. 01932_ G-34 Mercenary knocked back. 01938_ Slug penetrates Wall. 01943_ U-05 Engineer builds a Wall. 01944_ U-05 Engineer destroyed. 01951_ Slug penetrates Wall. 01952_ Lgt. Armor Plating destroyed. Map ----- +----------------------------------------------------+ | | | | | | | | | | | | | | | | | ???????????????????????????????????????????????? | | ??????????????????????????????????????###??????? | | ????????????????????????????????####### #?????? | | ???????????????????????????????# ? ##???? | | ???????????????????????????????# #??# ##??? | | ???????????????????????????????# #???# #### | | ???????????????????????????????# #???# ##[ | | ???????????????????????????????# #????# ## | | ???????????????????????????????# #????## = | | ???????????????????????????????# #?????# ### | | ?????????????????????????????### #?????# ##?? | | ???????????????????????????### #?????# ##??? | | ??????????????????????????## #?????# #??## | | ??????????????????????????# ###??## #?## | | ??????????????????????##### ###### ### | | ??????? ???????????# ### ## | | ??????? k#;## ## | | ??????? g %@ #### ### ## | | ??????? ;; g * #??#####?# ## | | ??????????###;; #### ##????????# # | | ????????????### ?????# #?????????# "## # | | ??????????????#???????# ???????? #### # | | ?????????????????????? ???????### #??# | | ?????????????????????? ????????? #??# # | | ?????????????????????? ????????? ?# ##### | | ????????????????????? ????????? ? #???? | | ????????????????????? ????????? ???? | | ????????????????????? ##??????? ??? | | ???????????????????? #????????? ??? | | ???????????????????? #??????????""" #?? | | ???????????????????? #???????????""" ##?? | | ????????????????????#???????????"""" ####??? | | ?????????????????????????????????? #??????? | | ?????????????????????????????????? ???????? | | ?????????????????????????????????? #???????? | | ??????????????????????????????????# #????????? | | ????????????????????????????????????# ?????????? | | ???????????????????????????????????????????????? | | ???????????????????????????????????????????????? | | ???????????????????????????????????????????????? | | ???????????????????????????????????????????????? | | ???????????????????????????????????????????????? | +----------------------------------------------------+ Best States ------------- Heat Dissipation 31 Energy Generation 10 Energy Capacity 250 Matter Stores 300 Matter Capacity 300 Sight Range 17 Robot Scan Range 2 Terrain Scan Range 16 Terrain Scan Density 160 Armor Coverage 150 Utility Shielding 33 Evasion (%) 44 Targeting Accuracy 5 Armor Integrity Analysis 33 Recoil Reduction 2 Offensive Hacking 15 Defensive Hacking 5 Item Schematics ----------------- None Robot Schematics ------------------ None Fabricated ------------ Nothing Alien Tech Used ----------------- None Achievements -------------- None Challenges ------------ None RPGLIKE | -11 -10 -10 --------- Run | Scr Mat Min Levels Raised 3 | . 2 1 XP Earned 8016 | 3000 3366 1650 XP Spent 5700 | 2950 2750 . Upgrades 15 | 11 4 . Propulsion Slot 1 | 1 . . Utility Slot 3 | 1 2 . Weapon Slot 2 | 1 1 . Heat Dissipation 1 | 1 . . Mass Support 1 | 1 . . Inventory Capacity 2 | 2 . . Sight Range 1 | 1 . . Sensor Range 1 | . 1 . Terrain Scan Density 1 | 1 . . Hack Attack % 1 | 1 . . Hack Defense % 1 | 1 . . Protomatter Created 219 | . 145 74 Integrity Restored 534 | . 327 207 Core 534 | . 327 207 Protomatter Decayed 49 | . 44 5 Game ------ Seed MediumPhasingDoublenader Manual? 0 Play Time 00:19:12 Cumulative 231.2 hours Start 2020.09.14 @ 11:36:45 End 2020.09.14 @ 12:02:31 Sessions 1 Manual Loads 0 Difficulty Rogue Special Mode Winter2019/RPGLIKE Game No. 96 Rogue 96 Adventurer 0 Explorer 0 Win Type - Total 3 Types 2/0/0/1/0/0/0 Lore% 85 Gallery% 83 Achievement% 69 Wizard Run 0 Options --------- ASCII 0 Keyboard 0 Movement Numpad Keybinds 0 Fullscreen 1 Font 18/SmallcapsGlow Map View 76x50 Tactical HUD 1 Map Filters NONE Filters NONE Steam 1 RUN: 5dac5a75-24f9-4a63-b380-21e7f6303bba